bitfinex/quotes_ETHUSD_20240816
["timestamp","ask_amount","ask_price","bid_price","bid_amount"]
[1723800212583,1.306,2625.2,2624.8,23.23469294]
[1723800213076,1.306,2625.2,2624.9,3.80963]
[1723800214270,1.306,2625.2,2625.0,6.27101]
[1723800214793,6.43974486,2625.9,2625.2,3.80909]
[1723800215083,6.43974486,2625.9,2625.4,3.80894]
[1723800215084,3.80832,2625.9,2625.4,3.80894]
[1723800215293,1.306,2625.7,2625.4,3.80894]
[1723800215439,3.80803,2626.1,2625.5,6.22369152]
[1723800215865,7.61603,2626.1,2625.5,6.22369152]
[1723800216070,7.61603,2626.1,2625.5,6.14752]
[1723800216794,1.306,2625.7,2625.5,6.14752]
[1723800217013,1.306,2625.7,2625.2,19.42492294]
[1723800217014,1.306,2625.7,2625.3,3.80907]
[1723800217145,3.80872,2625.6,2625.2,19.42492294]
[1723800217995,4.810736,2625.6,2625.2,19.42492294]
[1723800219098,4.810736,2625.6,2625.1,23.23428294]
[1723800219309,10.02008,2625.7,2625.1,23.23421294]
[1723800219450,6.21144,2625.7,2625.1,27.04351294]
[1723800219964,10.02003,2625.7,2625.1,27.04351294]
[1723800220349,3.8085,2625.7,2625.2,3.80916]
[1723800220555,3.8085,2625.7,2625.2,7.61831]
[1723800220953,2.2972,2625.8,2625.3,3.80901]
[1723800221173,6.10563,2625.8,2625.3,3.80901]
[1723800221713,3.8085,2625.7,2625.2,3.80915]
[1723800221917,3.8085,2625.7,2625.2,7.61831]
[1723800222215,6.10563,2625.8,2625.3,3.80901]
[1723800223406,3.134,2625.9,2625.5,6.26279]
[1723800225019,3.134,2625.9,2625.5,25.68771294]
[1723800225725,3.134,2625.9,2625.5,23.23361294]
[1723800229324,3.80814,2626.0,2625.5,23.23361294]
[1723800230688,3.80822,2625.9,2625.5,23.23361294]
[1723800230891,6.94222,2625.9,2625.6,19.42492294]
[1723800231097,3.134,2625.9,2625.6,19.42492294]
[1723800233082,3.80814,2626.0,2625.6,19.42492294]
[1723800234520,3.80814,2626.0,2625.6,21.97641523]
[1723800235109,3.80814,2626.0,2625.6,19.42492294]
[1723800235294,6.94221,2625.9,2625.6,19.42492294]
[1723800235706,3.80836,2625.8,2625.6,19.42492294]
[1723800236113,6.94222,2625.9,2625.6,19.42492294]
[1723800236911,6.94222,2625.9,2625.5,19.42492294]
[1723800237909,1.305,2625.6,2625.5,19.42492294]
[1723800240937,5.11365,2625.6,2625.5,19.42492294]
[1723800241149,11.786265,2625.6,2625.5,19.42492294]
[1723800241610,11.2749,2625.6,2625.5,19.42492294]
[1723800242947,7.46625,2625.6,2625.0,19.42492294]
[1723800243101,1.305,2625.1,2625.0,19.42492294]
[1723800244214,1.305,2625.1,2624.8,3.80973]
[1723800244215,1.305,2625.1,2624.8,19.42492294]
[1723800244505,1.305,2624.9,2624.8,19.42492294]
[1723800245838,11.734958,2624.9,2624.8,19.42492294]
[1723800246009,3.8101,2624.6,2624.2,19.42492294]
[1723800246213,3.8101,2624.6,2624.3,19.42492294]
[1723800246435,3.81032,2624.5,2624.3,19.42492294]
[1723800246661,3.81039,2624.4,2624.1,7.33]
[1723800246943,3.81062,2624.3,2624.1,7.33]
[1723800247236,3.81068,2624.2,2624.1,7.33]
[1723800247436,0.07615787,2624.3,2623.6,19.42492294]
[1723800247659,7.62207,2624.0,2623.7,19.42492294]
[1723800247801,7.62208,2624.0,2623.7,19.42492294]
[1723800248003,3.81102,2624.0,2623.7,19.42492294]
[1723800248235,6.94726,2623.8,2623.7,19.42492294]
[1723800249025,2.2728,2623.9,2623.7,19.42492294]
[1723800249423,6.08395,2623.9,2623.7,19.42492294]
[1723800249643,2.2728,2623.9,2623.7,19.42492294]
[1723800250004,3.81064,2624.3,2623.7,28.19451523]
[1723800250209,3.136,2624.4,2623.8,3.81118]
[1723800250421,3.81057,2624.3,2623.8,3.81118]
[1723800251820,3.81057,2624.3,2623.8,23.23610294]
[1723800252028,3.81057,2624.3,2623.8,23.77564553]
[1723800252412,7.62119,2624.3,2623.8,23.77564553]
[1723800252640,3.81057,2624.3,2623.8,23.23610294]
[1723800252838,3.81057,2624.3,2623.9,35.0]
[1723800253412,3.81057,2624.3,2623.8,23.23610294]
[1723800253842,3.81057,2624.3,2623.8,58.23610294]
[1723800254300,3.81025,2624.5,2623.9,2.3306]
[1723800254548,3.81062,2624.3,2623.8,23.23610294]
[1723800254944,3.81062,2624.3,2623.9,35.0]
[1723800257827,3.8107,2624.2,2623.9,19.42492294]
[1723800258035,3.81062,2624.3,2623.9,19.42492294]
[1723800258236,7.62128,2624.3,2623.9,19.42492294]
[1723800258762,3.81062,2624.3,2623.9,19.42492294]
[1723800259158,3.136,2624.4,2623.9,21.74855423]
[1723800259333,3.81034,2624.5,2623.9,21.74855423]
[1723800259736,3.8104,2624.4,2623.9,21.74855423]
[1723800259941,3.8104,2624.4,2623.9,19.42492294]
[1723800260157,3.81054,2624.3,2623.9,19.42492294]
[1723800260334,3.81084,2624.1,2623.9,19.42492294]
[1723800263733,7.62176,2624.1,2623.7,19.42492294]
[1723800264458,3.81084,2624.1,2623.7,19.42492294]
[1723800264860,10.08138,2624.3,2623.7,23.23633294]
[1723800265070,6.27071,2624.3,2623.7,23.23633294]
[1723800265266,6.27071,2624.3,2623.8,3.81118]
[1723800265439,3.136,2624.4,2623.8,6.22618]
[1723800265440,3.8107,2624.2,2623.8,6.22618]
[1723800265765,3.8107,2624.2,2623.7,23.23632294]
[1723800265929,3.8107,2624.2,2623.8,3.81125]
[1723800266666,3.8107,2624.2,2623.7,19.42492294]
[1723800266963,3.8107,2624.2,2623.7,23.23624294]
[1723800267863,3.81054,2624.3,2623.7,19.42492294]
[1723800268063,3.81073,2624.2,2623.7,23.23625294]
[1723800268264,3.81054,2624.3,2623.8,3.81124]
[1723800269246,7.62115,2624.3,2623.8,3.81124]
[1723800269589,7.62115,2624.3,2623.8,23.23616294]
[1723800269735,3.81069,2624.2,2623.8,19.42492294]
[1723800272074,3.81054,2624.3,2623.8,23.23618294]
[1723800272277,7.62119,2624.3,2623.8,23.23618294]
[1723800272780,3.81054,2624.3,2623.8,23.23618294]
[1723800272977,7.62119,2624.3,2623.8,23.23618294]
[1723800274081,3.8107,2624.2,2623.8,23.23618294]
[1723800274689,3.8107,2624.2,2623.8,19.42492294]
[1723800275787,3.8107,2624.2,2623.7,23.23633294]
[1723800275990,1.307,2623.9,2623.7,23.23633294]
[1723800278111,1.307,2623.9,2623.8,35.0]
[1723800278266,1.307,2623.9,2623.7,23.23633294]
[1723800278802,1.307,2623.9,2623.8,35.0]
[1723800279366,1.307,2623.9,2623.7,23.23633294]
[1723800279974,1.307,2623.9,2623.7,58.23633294]
[1723800280675,1.307,2623.9,2623.7,23.23633294]
[1723800280874,1.307,2624.1,2623.7,23.23633294]
[1723800281103,6.13135,2624.5,2624.0,3.81088]
[1723800281303,9.9417,2624.5,2624.1,0.381088]
[1723800281607,9.9417,2624.5,2624.0,3.81088]
[1723800281807,1.307,2624.2,2624.0,3.81088]
[1723800282498,3.81039,2624.4,2624.0,3.81088]
[1723800283609,5.11739,2624.4,2624.0,3.81088]
[1723800286498,5.11739,2624.4,2624.0,3.88709132]
[1723800287310,1.307,2624.4,2624.0,3.88709132]
[1723800287511,1.307,2624.4,2624.0,23.31201426]
[1723800288714,1.307,2624.4,2624.0,23.23580294]
[1723800289581,5.11741,2624.4,2624.0,23.23580294]
[1723800291199,1.307,2624.2,2624.0,19.42492294]
[1723800293505,1.307,2624.2,2623.9,23.23603294]
[1723800295217,9.87811,2624.5,2624.0,3.81097]
[1723800295400,1.307,2624.4,2624.0,3.81097]
[1723800296088,5.11739,2624.4,2623.9,23.23596294]
[1723800297100,5.11739,2624.4,2623.9,27.04700294]
[1723800297300,5.11739,2624.4,2623.9,23.23596294]
[1723800298223,1.307,2624.4,2623.9,23.23596294]
[1723800298903,5.1174,2624.4,2623.9,23.23596294]
[1723800299303,5.1174,2624.4,2624.0,19.42492294]
[1723800299499,1.307,2624.2,2624.0,19.42492294]
[1723800300106,5.11769,2624.2,2624.0,19.42492294]
[1723800300297,2.3066,2624.1,2624.0,19.42492294]
[1723800301022,6.11743,2624.1,2624.0,19.42492294]
[1723800301813,2.3066,2624.1,2624.0,19.42492294]
[1723800305441,6.11743,2624.1,2623.9,19.42492294]
[1723800305611,1.307,2624.0,2623.9,19.42492294]
[1723800308954,2.049429,2624.0,2623.2,22.70624484]
[1723800309236,1.307,2623.5,2623.2,23.23693294]
[1723800309435,1.307,2623.5,2623.2,3.81201]
[1723800310147,1.307,2623.3,2622.8,23.23754294]
[1723800310350,1.307,2623.0,2622.5,6.22493]
[1723800310669,3.81243,2623.0,2622.5,6.96585745]
[1723800310942,3.81243,2623.0,2622.5,4.55395745]
[1723800311350,1.307,2622.7,2622.5,4.55395745]
[1723800311641,1.307,2622.7,2622.6,3.813]
[1723800312333,3.5754,2622.7,2621.9,0.8006219]
[1723800312543,3.5754,2622.7,2622.1,3.81366]
[1723800312544,1.307,2622.4,2622.1,3.81366]
[1723800312715,1.307,2622.2,2622.1,3.81366]
[1723800313108,1.307,2622.2,2621.9,3.81392]
[1723800313345,1.307,2622.2,2621.9,4.421842]
[1723800313707,1.307,2622.2,2622.0,3.8138]
[1723800314057,7.62612,2622.6,2622.0,3.8138]
[1723800314274,3.81301,2622.6,2622.1,3.81372]
[1723800314579,3.81301,2622.6,2622.1,4.6372762]
[1723800315030,3.81301,2622.6,2622.1,4.6372162]
[1723800315219,3.81316,2622.5,2622.1,0.8235562]
[1723800315418,3.8133,2622.4,2621.9,4.421842]
[1723800315715,2.4566,2622.3,2621.9,4.421842]
[1723800317133,3.81381,2622.1,2621.5,3.81453]
[1723800317726,3.81388,2622.0,2621.5,3.81453]
[1723800317921,3.81388,2622.0,2621.5,4.815884]
[1723800319449,3.81418,2621.8,2621.3,3.81481]
[1723800319749,3.81418,2621.8,2621.2,3.81501]
[1723800319949,2.3689,2621.9,2621.2,4.805931]
[1723800320571,7.62874,2621.7,2621.2,20.41584394]
[1723800320777,3.81455,2621.6,2621.2,19.42492294]
[1723800320935,3.81464,2621.5,2621.3,19.42492294]
[1723800321141,3.81464,2621.5,2621.0,19.42492294]
[1723800321320,3.81464,2621.5,2621.0,23.24023294]
[1723800322320,3.81479,2621.4,2621.0,19.42492294]
[1723800322776,3.81506,2621.2,2621.0,19.42492294]
[1723800323052,6.07106,2621.2,2621.0,19.42492294]
[1723800323474,9.88618,2621.2,2621.0,19.42492294]
[1723800323676,6.07106,2621.2,2621.0,19.42492294]
[1723800323976,3.81519,2621.1,2621.0,19.42492294]
[1723800325332,4.803815,2621.1,2621.0,19.42492294]
[1723800325529,3.81556,2620.9,2620.3,3.81625]
[1723800325752,3.81534,2621.0,2620.4,23.24102294]
[1723800326752,3.81534,2621.0,2620.5,3.81606]
[1723800326954,2.285,2621.1,2620.5,3.81606]
[1723800326955,2.285,2621.1,2620.7,3.81568]
[1723800327583,2.285,2621.1,2620.7,7.63137]
[1723800328082,4.19467,2622.7,2620.8,19.42492294]
[1723800328275,2.3629,2621.9,2621.0,2.3782]
[1723800328559,3.81435,2621.7,2621.2,3.81494]
[1723800328769,3.81435,2621.7,2621.0,3.81519]
[1723800328770,2.3629,2621.6,2621.0,3.81519]
[1723800328993,2.3629,2621.6,2621.2,3.81504]
[1723800329127,2.3629,2621.6,2621.0,7.63038]
[1723800329461,6.17739,2621.6,2620.9,26.75492294]
[1723800329671,3.81477,2621.4,2620.9,30.57038294]
[1723800329871,6.17739,2621.6,2621.0,23.24024294]
[1723800329872,9.99199,2621.6,2621.0,23.24024294]
[1723800330234,11.014818,2621.6,2621.0,23.24024294]
[1723800330742,7.200218,2621.6,2621.1,3.81518]
[1723800330940,6.17739,2621.6,2621.1,3.81518]
[1723800332185,2.3629,2621.6,2621.3,3.81485]
[1723800333531,2.4897,2621.9,2621.1,3.81516]
[1723800333862,3.81441,2621.7,2621.2,3.81501]
[1723800334064,2.4834,2621.5,2621.1,3.81517]
[1723800334564,2.4834,2621.5,2621.2,3.81498]
[1723800335681,2.3671,2622.0,2621.2,2.2632]
[1723800335883,2.3671,2622.2,2622.1,3.81373]
[1723800336034,2.3671,2622.2,2622.0,3.81387]
[1723800336256,2.3671,2622.2,2621.8,3.81408]
[1723800336646,2.3671,2622.2,2621.5,0.404101]
[1723800336647,2.3671,2622.2,2621.9,3.81402]
[1723800336845,2.4695,2622.4,2622.0,3.81387]
[1723800337520,2.4695,2622.4,2621.9,3.81402]
[1723800337726,2.4695,2622.4,2621.7,3.81423]
[1723800337727,3.81354,2622.3,2621.7,7.62847]
[1723800337874,3.81354,2622.3,2621.7,7.62846]
[1723800338072,3.81354,2622.3,2621.7,3.81423]
[1723800338474,3.8136,2622.2,2621.7,3.81423]
[1723800338703,3.8136,2622.2,2621.7,3.81422]
[1723800338885,6.28288,2622.4,2621.8,3.81415]
[1723800339091,10.724598,2622.4,2621.8,3.81415]
[1723800339396,10.724598,2622.4,2621.9,3.81402]
[1723800339397,6.911168,2622.4,2621.9,3.81402]
[1723800339586,2.4695,2622.4,2621.9,3.81402]
[1723800340199,2.4695,2622.4,2622.0,3.81387]
[1723800340771,2.4695,2622.4,2621.9,3.81402]
[1723800341181,2.4695,2622.4,2621.9,7.62795]
[1723800341395,2.4695,2622.4,2621.9,3.81393]
[1723800341706,7.292376,2622.4,2621.8,19.42492294]
[1723800341914,7.292376,2622.4,2621.3,23.23973294]
[1723800341915,3.81417,2621.9,2621.3,23.23973294]
[1723800342088,2.4962,2621.8,2621.3,3.81481]
[1723800342427,2.4962,2621.8,2621.4,3.81467]
[1723800343278,2.4962,2621.8,2621.5,3.8146]
[1723800343517,2.4962,2621.8,2621.6,3.81438]
[1723800344218,2.4962,2621.8,2621.5,3.81453]
[1723800345104,2.4962,2621.8,2621.6,3.81446]
[1723800345777,2.4962,2621.8,2621.3,2.32399329]
[1723800345778,6.31039,2621.8,2621.3,6.13887329]
[1723800346000,6.31039,2621.8,2621.3,7.6297]
[1723800346309,6.31039,2621.8,2621.3,3.81482]
[1723800346513,3.8144,2621.7,2621.4,19.42492294]
[1723800347024,3.127239,2621.8,2621.5,3.81459]
[1723800347178,2.4962,2621.8,2621.5,3.81459]
[1723800347382,2.4962,2621.8,2621.5,3.81452]
[1723800347583,2.4962,2621.8,2621.6,3.81437]
[1723800347891,2.4962,2621.8,2621.4,19.42492294]
[1723800348080,2.74582,2621.8,2621.4,23.23960294]
[1723800348304,6.63624787,2621.8,2621.4,19.42492294]
[1723800348507,3.8146,2621.5,2621.4,19.42492294]
[1723800348731,9.8819,2621.5,2621.4,19.42492294]
[1723800349631,6.0673,2621.5,2621.4,19.42492294]
[1723800352086,2.3134,2621.1,2620.7,3.81576]
[1723800352345,2.3134,2621.1,2620.7,23.24068294]
[1723800352518,2.3134,2621.1,2620.7,25.94632823]
[1723800353678,2.3134,2621.1,2620.8,3.81559]
[1723800353811,6.3064,2621.3,2620.8,3.81559]
[1723800354465,2.4914,2621.3,2621.0,3.8153]
[1723800355351,2.4914,2621.3,2620.9,3.81547]
[1723800356641,2.4914,2621.3,2621.0,3.81533]
[1723800357744,2.4914,2621.3,2620.8,4.32497959]
[1723800357745,2.3008,2621.5,2620.8,4.32491959]
[1723800358229,6.11545,2621.5,2621.0,3.81533]
[1723800358607,2.4898,2621.4,2620.8,3.81551]
[1723800358970,6.30463,2621.4,2620.9,3.81547]
[1723800361126,3.8149,2621.3,2620.7,19.42492294]
[1723800361435,2.3847,2621.2,2620.7,23.24062294]
[1723800361922,2.3847,2621.2,2620.8,19.42492294]
[1723800362625,2.3847,2621.2,2620.8,23.24051294]
[1723800363515,6.19975,2621.2,2620.8,19.42492294]
[1723800363968,6.19975,2621.2,2620.7,3.81577]
[1723800364173,2.3847,2621.2,2620.8,3.8156]
[1723800364605,2.3847,2621.2,2620.8,4.578741]
[1723800364812,6.18552,2621.5,2621.0,3.81532]
[1723800366606,6.18552,2621.5,2621.1,3.81508]
[1723800366607,2.3709,2621.5,2621.1,3.81508]
[1723800367129,6.18552,2621.5,2621.1,3.81508]
[1723800367330,6.804065,2621.5,2621.1,3.81508]
[1723800368124,2.3709,2621.5,2621.1,3.81508]
[1723800368328,2.3336,2621.8,2621.5,3.81459]
[1723800368657,2.3336,2621.8,2621.5,4.195989]
[1723800368932,2.3336,2621.8,2621.5,3.81453]
[1723800369505,2.3336,2621.8,2621.4,3.81475]
[1723800369920,2.3336,2621.8,2621.3,3.81489]
[1723800369921,3.81432,2621.7,2621.3,3.81489]
[1723800370089,3.81432,2621.7,2621.2,3.81504]
[1723800370788,6.38115,2621.8,2621.3,3.81489]
[1723800371392,0.638115,2621.7,2621.3,3.81489]
[1723800371731,2.3336,2621.8,2621.4,3.81467]
[1723800372225,2.4648,2622.1,2621.6,3.81432]
[1723800372382,2.4648,2622.1,2621.7,3.81431]
[1723800372581,3.092643,2622.1,2621.7,3.81431]
[1723800373175,2.4648,2622.1,2621.7,3.81431]
[1723800373488,2.4648,2622.3,2621.8,3.81415]
[1723800373688,6.906159,2622.3,2621.8,3.81415]
[1723800374980,3.092619,2622.3,2621.8,7.62822]
[1723800375182,3.092619,2622.3,2621.9,3.81402]
[1723800375530,2.4648,2622.3,2621.8,3.81407]
[1723800376014,6.27825,2622.3,2621.8,3.81407]
[1723800376821,2.4648,2622.3,2621.8,7.62816]
[1723800377122,2.4648,2622.3,2621.8,3.81407]
[1723800377282,3.092619,2622.3,2621.8,3.81407]
[1723800378383,3.8136,2622.2,2621.7,3.81431]
[1723800379029,6.906069,2622.3,2621.6,3.8144]
[1723800379321,3.8136,2622.2,2621.6,3.81439]
[1723800379715,3.8136,2622.2,2621.7,3.81429]
[1723800380436,3.81393,2622.0,2621.5,23.23945294]
[1723800381297,3.81374,2622.1,2621.6,3.81444]
[1723800381596,3.81388,2622.0,2621.6,3.81444]
[1723800386128,7.62729,2622.2,2621.6,7.62882]
[1723800386529,3.81374,2622.1,2621.6,3.81437]
[1723800387133,3.81374,2622.1,2621.6,7.62876]
[1723800388912,6.27837,2622.3,2621.8,3.81406]
[1723800389137,2.4648,2622.3,2621.9,3.81402]
[1723800389622,6.27828,2622.3,2621.9,3.81402]
[1723800391643,6.27828,2622.3,2621.8,3.81416]
[1723800392039,3.81362,2622.2,2621.5,3.81451]
[1723800392304,3.81362,2622.2,2621.7,3.81429]
[1723800393672,3.81362,2622.2,2621.7,3.81421]
[1723800394074,7.287409,2622.3,2621.7,3.81421]
[1723800394385,7.287409,2622.3,2621.8,3.81406]
[1723800395558,6.27824,2622.3,2621.8,6.16236]
[1723800396392,3.81319,2622.5,2621.9,3.81393]
[1723800396675,6.07037,2622.6,2622.1,3.81365]
[1723800396886,3.81317,2622.5,2621.9,23.23880294]
[1723800397045,3.81317,2622.5,2622.0,3.8138]
[1723800397250,3.81331,2622.4,2622.0,3.8138]
[1723800397479,3.81317,2622.5,2622.1,3.81372]
[1723800398579,6.07031,2622.6,2622.1,3.81365]
[1723800398765,0.06619982,2622.9,2622.4,3.81322]
[1723800398766,3.87877982,2622.9,2622.4,3.81322]
[1723800398964,3.87877982,2622.9,2622.3,3.81331]
[1723800398965,6.29015,2623.0,2622.5,3.81314]
[1723800399171,3.81245,2623.0,2622.6,6.16899]
[1723800399379,6.25531,2623.3,2622.6,6.16899]
[1723800399380,3.81228,2623.1,2622.6,6.16899]
[1723800399591,7.62467,2623.1,2622.6,6.16899]
[1723800400277,3.81243,2623.0,2622.6,6.16899]
[1723800400484,3.81243,2623.0,2622.6,2.356]
[1723800401662,8.249921,2623.2,2622.6,6.169]
[1723800401857,0.625531,2623.2,2622.7,3.81283]
[1723800402059,3.81237,2623.1,2622.5,3.81307]
[1723800402558,3.81243,2623.0,2622.5,3.81307]
[1723800402765,7.62494,2623.0,2622.5,3.81307]
[1723800402950,3.81243,2623.0,2622.5,3.81307]
[1723800403652,3.81243,2623.0,2622.5,23.23799294]
[1723800404053,2.50835787,2622.9,2622.5,19.42492294]
[1723800404254,3.81275,2622.8,2622.5,19.42492294]
[1723800407342,6.24478,2622.9,2622.5,19.42492294]
[1723800409446,6.24478,2622.9,2622.4,23.23821294]
[1723800412379,3.81272,2622.8,2622.4,23.23821294]
[1723800413851,2.4322,2622.9,2622.4,23.23821294]
[1723800414013,2.4322,2622.9,2622.5,3.81315]
[1723800414214,7.62493,2623.0,2622.5,3.81315]
[1723800414514,3.81243,2623.0,2622.5,7.62623]
[1723800414713,3.81243,2623.0,2622.5,3.81308]
[1723800415848,7.62495,2623.0,2622.5,3.81308]
[1723800416164,3.81243,2623.0,2622.5,3.81308]
[1723800417056,3.81243,2623.0,2622.4,23.23820294]
[1723800417293,3.81264,2622.9,2622.4,23.23820294]
[1723800417575,3.81243,2623.0,2622.5,3.81314]
[1723800418084,3.81258,2622.9,2622.5,3.81314]
[1723800420050,3.81258,2622.9,2622.4,23.23822294]
[1723800421380,3.81272,2622.8,2622.4,23.23822294]
[1723800422325,7.6263,2622.5,2622.4,19.42492294]
[1723800422560,7.6263,2622.5,2622.1,7.33]
[1723800422561,7.62688,2622.3,2622.2,19.42492294]
[1723800422760,11.557798,2622.3,2622.2,19.42492294]
[1723800423530,7.744358,2622.3,2622.2,19.42492294]
[1723800425780,10.03248,2622.3,2622.2,19.42492294]
[1723800425943,6.21904,2622.3,2622.2,19.42492294]
[1723800426840,2.4056,2622.3,2622.2,19.42492294]
[1723800427045,3.8133,2622.4,2622.2,19.42492294]
[1723800427255,3.8133,2622.4,2621.9,6.13919]
[1723800427860,3.81345,2622.3,2621.9,2.3252]
[1723800430450,2.3148,2622.2,2621.7,3.81418]
[1723800430648,6.12839,2622.2,2621.7,3.81418]
[1723800431487,0.07615787,2622.1,2621.6,23.23932294]
[1723800431670,3.81389,2622.0,2621.5,6.2342]
[1723800431862,3.81453,2621.6,2621.1,3.81519]
[1723800432062,3.89076787,2621.5,2621.0,6.13342]
[1723800432275,3.81485,2621.4,2620.9,3.81541]
[1723800432585,3.8149,2621.3,2620.8,2.3182]
[1723800432804,3.8149,2621.3,2620.8,7.128761]
[1723800433011,3.8149,2621.3,2620.8,10.944311]
[1723800433354,6.23455,2621.4,2620.8,10.944311]
[1723800433554,6.23455,2621.4,2620.9,3.81545]
[1723800436292,3.81456,2621.6,2621.0,3.81531]
[1723800436604,2.2762,2621.7,2621.2,7.6299]
[1723800436758,2.2762,2621.7,2621.2,3.81494]
[1723800437766,2.2762,2621.7,2620.8,2.3182]
[1723800438066,3.81453,2621.6,2620.9,3.81546]
[1723800438266,7.62911,2621.6,2621.1,3.81517]
[1723800438468,3.81463,2621.5,2621.0,3.81533]
[1723800438855,7.62913,2621.6,2621.0,3.81533]
[1723800439279,3.81453,2621.6,2621.0,3.81533]
[1723800439701,7.6291,2621.6,2621.0,3.81533]
[1723800440385,3.81462,2621.5,2621.0,3.81533]
[1723800442094,3.81462,2621.5,2621.0,23.24025294]
[1723800443196,3.81448,2621.6,2621.1,3.81517]
[1723800448110,3.81461,2621.5,2621.1,3.81517]
[1723800458020,5.12461,2621.5,2621.1,3.81517]
[1723800458452,1.31,2621.5,2621.2,2.2657]
[1723800458853,5.12462,2621.5,2621.2,2.2657]
[1723800459664,5.12462,2621.5,2621.0,25.68814294]
[1723800461046,1.31,2621.3,2621.0,19.42492294]
[1723800461327,1.31,2621.3,2621.0,23.24024294]
[1723800461566,1.31,2621.3,2621.0,25.94580323]
[1723800464458,7.45237,2621.3,2621.0,19.42492294]
[1723800464657,3.81505,2621.2,2621.0,19.42492294]
[1723800465209,1.31,2621.1,2621.0,19.42492294]
[1723800466082,7.45231,2621.3,2620.8,23.24048294]
[1723800466384,7.45231,2621.3,2620.8,24.98452294]
[1723800467657,7.45231,2621.3,2620.8,24.98451294]
[1723800471300,7.45231,2621.3,2620.8,28.80006294]
[1723800471658,7.45231,2621.3,2620.8,24.98451294]
[1723800471998,7.45231,2621.3,2620.8,28.80007294]
[1723800473611,3.6374,2621.3,2620.9,3.81538]
[1723800473829,3.6374,2621.3,2620.9,5.28637488]
[1723800476417,3.6374,2621.3,2620.9,3.81538]
[1723800476600,1.31,2621.1,2620.8,23.24047294]
[1723800476804,3.81564,2620.8,2620.5,19.42492294]
[1723800477126,1.31,2620.7,2620.3,23.24127294]
[1723800477430,1.31,2620.7,2620.4,3.81621]
[1723800478426,2.4582,2621.2,2620.5,2.3303]
[1723800478597,1.31,2621.3,2620.9,3.81534]
[1723800480035,1.31,2621.3,2620.8,3.81562]
[1723800480286,1.31,2621.1,2620.8,3.81562]
[1723800480431,1.31,2621.1,2620.9,3.81545]
[1723800481149,1.31,2621.1,2621.0,3.81533]
[1723800481471,3.81393,2622.0,2621.0,3.81533]
[1723800481472,5.72971179,2622.2,2621.1,2.2817]
[1723800481642,2.4212,2622.5,2622.0,3.81388]
[1723800482031,2.4212,2622.5,2622.1,3.81373]
[1723800482432,6.23439,2622.5,2621.9,3.81389]
[1723800482632,6.23439,2622.5,2621.9,7.62781]
[1723800482633,2.4212,2622.5,2621.9,7.62781]
[1723800482833,2.4212,2622.5,2621.9,5.96365606]
[1723800483444,2.4212,2622.5,2621.9,5.88738229]
[1723800483881,2.4212,2622.5,2621.9,5.96365431]
[1723800484183,2.4212,2622.5,2622.1,3.8136]
[1723800484376,2.4212,2622.5,2622.1,4.40230923]
[1723800484548,2.3962,2622.9,2622.5,3.81312]
[1723800484883,2.3962,2623.2,2622.5,0.381312]
[1723800485094,2.3962,2623.2,2622.7,3.81277]
[1723800485251,6.13881,2623.5,2622.9,3.81246]
[1723800485452,2.3271,2623.5,2622.9,3.81246]
[1723800485689,3.81156,2623.6,2623.1,3.81227]
[1723800485884,3.81156,2623.6,2622.9,3.81246]
[1723800485885,3.81156,2623.6,2622.9,23.3136164]
[1723800486087,0.381156,2623.5,2622.9,23.23737294]
[1723800486286,0.381156,2623.5,2622.7,6.10818]
[1723800486287,4.19996252,2624.0,2623.1,3.81216]
[1723800486490,0.07615787,2623.9,2622.9,3.81247]
[1723800486649,3.81171,2623.5,2622.9,3.81247]
[1723800487454,7.62302,2623.7,2623.0,3.81234]
[1723800487685,3.81157,2623.6,2623.0,7.62468]
[1723800487877,4.573872,2623.6,2623.0,7.62468]
[1723800488073,4.573872,2623.6,2623.0,3.81234]
[1723800488408,4.573852,2623.6,2623.1,3.81226]
[1723800488691,0.762302,2623.6,2623.1,3.81225]
[1723800488898,3.81149,2623.7,2623.1,3.81225]
[1723800489189,3.14,2623.8,2623.1,3.81225]
[1723800489490,6.9514,2623.8,2623.1,3.81225]
[1723800489683,3.81143,2623.7,2623.1,3.81225]
[1723800489886,7.62296,2623.7,2623.1,3.81225]
[1723800490100,3.81156,2623.6,2623.1,3.81225]
[1723800490585,3.8117,2623.5,2622.9,3.81249]
[1723800490785,3.8117,2623.5,2622.9,4.423279]
[1723800490995,3.8121,2623.3,2622.5,3.81308]
[1723800491197,3.88825787,2623.3,2622.6,3.8129]
[1723800491414,3.81217,2623.2,2622.6,4.801678]
[1723800491562,3.81229,2623.1,2622.6,0.988778]
[1723800491767,3.81229,2623.1,2622.5,3.81308]
[1723800492006,3.81229,2623.1,2622.5,7.62613]
[1723800492612,3.81206,2623.3,2622.6,3.81296]
[1723800493029,3.81217,2623.2,2622.6,3.81296]
[1723800493301,3.81217,2623.2,2622.7,3.81285]
[1723800495474,3.8123,2623.1,2622.5,4.194355]
[1723800495670,3.8123,2623.1,2622.5,23.61927794]
[1723800496286,3.81246,2623.0,2622.5,23.61927794]
[1723800496480,3.81246,2623.0,2622.5,23.23797294]
[1723800496890,3.81257,2622.9,2622.5,19.42492294]
[1723800497082,3.81257,2622.9,2622.2,23.23847294]
[1723800497083,0.07615787,2622.8,2622.2,23.23847294]
[1723800497406,4.807793,2622.9,2622.3,3.81343]
[1723800497705,3.81257,2622.9,2622.3,3.81343]
[1723800498320,3.21615787,2622.9,2622.2,19.42492294]
[1723800498629,2.3306,2622.5,2622.2,19.42492294]
[1723800498801,2.3306,2622.5,2622.0,23.23871294]
[1723800499011,3.8131,2622.6,2622.0,27.05248294]
[1723800499224,3.8131,2622.6,2622.1,3.81373]